fUSD/lending_fUSD_20241208
["ID","MTS","AMOUNT","RATE_DAILY","PERIOD"]
[344637335,1733649082098,-304.41143149,0.00022999,2]
[344637336,1733649082114,-585.50338639,0.00022999,2]
[344637337,1733649082129,-500.0,0.00022999,2]
[344637338,1733649082146,-500.0,0.00022999,2]
[344637339,1733649082163,-500.0,0.00022999,2]
[344637340,1733649082178,-536.69,0.00022999,2]
[344637341,1733649082193,-536.69,0.00022999,2]
[344637342,1733649082209,-536.69,0.00022999,2]
[344637343,1733649082224,-536.69,0.00022999,2]
[344637344,1733649082239,-536.69,0.00022999,2]
[344637345,1733649082254,-500.0,0.00022999,2]
[344637346,1733649082268,-536.69,0.00022999,2]
[344637347,1733649082283,-500.0,0.00022999,2]
[344637348,1733649082298,-536.69,0.00022999,2]
[344637349,1733649082313,-500.0,0.00022999,2]
[344637350,1733649082458,-536.69,0.00022999,2]
[344637351,1733649082469,-500.0,0.00022999,2]
[344637352,1733649082478,-536.69,0.00022999,2]
[344637353,1733649082487,-500.0,0.00022999,2]
[344637354,1733649082496,-536.69,0.00022999,2]
[344637355,1733649082505,-500.0,0.00022999,2]
[344637356,1733649082513,-536.69,0.00022999,2]
[344637357,1733649082522,-514.81560488,0.00022999,2]
[344637358,1733649082530,-536.69,0.00022999,2]
[344637359,1733649082540,-536.69,0.00022999,2]
[344637360,1733649082549,-536.69,0.00022999,2]
[344637361,1733649082558,-536.70548237,0.00022999,2]
[344637362,1733649082571,-500.0,0.00022999,2]
[344637363,1733649082584,-500.0,0.00022999,2]
[344637364,1733649082593,-500.0,0.00022999,2]
[344637365,1733649082602,-289.24931514,0.00022999,2]
[344637366,1733649082612,-233.46,0.00022999,2]
[344637367,1733649082622,-706.42,0.00022999,2]
[344637368,1733649082631,-706.42,0.00022999,2]
[344637369,1733649082641,-706.42,0.00022999,2]
[344637370,1733649082651,-706.42,0.00022999,2]
[344637371,1733649082660,-706.42,0.00022999,2]
[344637372,1733649082670,-706.42,0.00022999,2]
[344637373,1733649082679,-706.42,0.00022999,2]
[344637374,1733649082688,-706.42,0.00022999,2]
[344637375,1733649082697,-706.42,0.00022999,2]
[344637376,1733649082706,-706.42,0.00022999,2]
[344637377,1733649082715,-706.42,0.00022999,2]
[344637378,1733649082725,-706.42,0.00022999,2]
[344637379,1733649082733,-706.42,0.00022999,2]
[344637380,1733649082743,-706.42,0.00022999,2]
[344637381,1733649082751,-706.52,0.00022999,2]
[344637382,1733649082760,-500.0,0.00022999,2]
[344637383,1733649082769,-526.6,0.00022999,2]
[344637384,1733649082778,-500.0,0.00022999,2]
[344637385,1733649082787,-500.0,0.00022999,2]
[344637386,1733649082797,-500.0,0.00022999,2]
[344637387,1733649082808,-513.72369356,0.00022999,2]
[344637388,1733649082817,-500.0,0.00022999,2]
[344637389,1733649082826,-500.0,0.00022999,2]
[344637390,1733649082836,-500.0,0.00022999,2]
[344637391,1733649082845,-641.9360001,0.00022999,2]
[344637392,1733649082856,-559.33950089,0.00022999,2]
[344637393,1733649082866,-625.61,0.00022999,2]
[344637394,1733649082875,-625.61,0.00022999,2]
[344637395,1733649082886,-625.61,0.00022999,2]
[344637396,1733649082895,-625.61,0.00022999,2]
[344637397,1733649082905,-625.61,0.00022999,2]
[344637398,1733649082914,-625.61,0.00022999,2]
[344637399,1733649082923,-625.61,0.00022999,2]
[344637400,1733649082932,-625.61,0.00022999,2]
[344637401,1733649082942,-625.61,0.00022999,2]
[344637402,1733649082952,-625.61,0.00022999,2]
[344637403,1733649082962,-625.61,0.00022999,2]
[344637404,1733649082972,-625.61,0.00022999,2]
[344637405,1733649082981,-625.61,0.00022999,2]
[344637406,1733649082990,-625.61,0.00022999,2]
[344637407,1733649082999,-625.77442462,0.00022999,2]
[344637408,1733649083009,-500.0,0.00022999,2]
[344637409,1733649083018,-500.0,0.00022999,2]
[344637410,1733649083027,-561.46460841,0.00022999,2]
[344637411,1733649083036,-500.0,0.00022999,2]
[344637412,1733649083047,-500.0,0.00022999,2]
[344637413,1733649083057,-500.0,0.00022999,2]
[344637414,1733649083066,-500.0,0.00022999,2]
[344637415,1733649083076,-257.34571942,0.00022999,2]
[344637416,1733649083085,-643.95,0.00022999,2]
[344637417,1733649083095,-500.0,0.00022999,2]
[344637418,1733649083105,-542.89,0.00022999,2]
[344637419,1733649083114,-500.0,0.00022999,2]
[344637420,1733649083123,-542.89,0.00022999,2]
[344637421,1733649083132,-500.0,0.00022999,2]
[344637422,1733649083141,-542.89,0.00022999,2]
[344637423,1733649083151,-454.14,0.00022999,2]
[344637424,1733649083160,-542.89,0.00022999,2]
[344637425,1733649083169,-542.89,0.00022999,2]
[344637426,1733649083179,-542.89,0.00022999,2]
[344637427,1733649083188,-542.89,0.00022999,2]
[344637428,1733649083197,-542.89,0.00022999,2]
[344637429,1733649083207,-542.89,0.00022999,2]
[344637430,1733649083217,-577.68,0.00022999,2]
[344637431,1733649083226,-542.89,0.00022999,2]
[344637432,1733649083236,-542.89,0.00022999,2]
[344637433,1733649083245,-500.0,0.00022999,2]
[344637434,1733649083255,-577.68,0.00022999,2]
[344637435,1733649083264,-500.0,0.00022999,2]
[344637436,1733649083274,-542.89,0.00022999,2]
[344637437,1733649083283,-577.68,0.00022999,2]
[344637438,1733649083292,-500.0,0.00022999,2]
[344637439,1733649083302,-542.89,0.00022999,2]
[344637440,1733649083311,-577.68,0.00022999,2]
[344637441,1733649083322,-500.0,0.00022999,2]
[344637442,1733649083331,-542.89,0.00022999,2]
[344637443,1733649083341,-577.68,0.00022999,2]
[344637444,1733649083351,-500.0,0.00022999,2]
[344637445,1733649083361,-500.0,0.00022999,2]
[344637446,1733649083371,-543.0,0.00022999,2]
[344637447,1733649083381,-577.68,0.00022999,2]
[344637448,1733649083390,-500.0,0.00022999,2]
[344637449,1733649083400,-500.0,0.00022999,2]
[344637450,1733649083410,-577.68,0.00022999,2]
[344637451,1733649083420,-500.0,0.00022999,2]
[344637452,1733649083429,-500.0,0.00022999,2]
[344637453,1733649083439,-577.68,0.00022999,2]
[344637454,1733649083448,-398.0905682,0.00022999,2]
[344637455,1733649083457,-500.0,0.00022999,2]
[344637456,1733649083466,-577.68,0.00022999,2]
[344637457,1733649083476,-577.68,0.00022999,2]
[344637458,1733649083485,-577.68,0.00022999,2]
[344637459,1733649083494,-577.68,0.00022999,2]
[344637460,1733649083504,-577.68,0.00022999,2]
[344637461,1733649083513,-577.68,0.00022999,2]
[344637462,1733649083523,-577.88850136,0.00022999,2]
[344637463,1733649083533,-500.0,0.00022999,2]
[344637464,1733649083543,-500.0,0.00022999,2]
[344637465,1733649083552,-500.0,0.00022999,2]
[344637466,1733649083563,-500.0,0.00022999,2]
[344637467,1733649083574,-500.0,0.00022999,2]
[344637468,1733649083584,-500.0,0.00022999,2]
[344637469,1733649083592,-634.9,0.00022999,2]
[344637470,1733649083603,-500.0,0.00022999,2]
[344637471,1733649083614,-500.0,0.00022999,2]
[344637472,1733649083623,-500.0,0.00022999,2]
[344637473,1733649083632,-500.0,0.00022999,2]
[344637474,1733649083640,-500.0,0.00022999,2]
[344637475,1733649083650,-500.0,0.00022999,2]
[344637476,1733649083660,-500.0,0.00022999,2]
[344637477,1733649083670,-500.0,0.00022999,2]
[344637478,1733649083679,-500.0,0.00022999,2]
[344637479,1733649083688,-500.0,0.00022999,2]
[344637480,1733649083697,-500.0,0.00022999,2]
[344637481,1733649083707,-516.68991983,0.00022999,2]
[344637482,1733649083716,-500.0,0.00022999,2]
[344637483,1733649083725,-500.0,0.00022999,2]
[344637484,1733649083734,-500.0,0.00022999,2]
[344637485,1733649083743,-500.0,0.00022999,2]
[344637486,1733649083752,-500.0,0.00022999,2]
[344637487,1733649083761,-512.75389462,0.00022999,2]
[344637488,1733649083771,-276.04345972,0.00022999,2]
[344637489,1733649083780,-430.71485745,0.00022999,2]
[344637490,1733649083789,-500.0,0.00022999,2]
[344637491,1733649083798,-318.50236941,0.00022999,2]
[344637492,1733649083807,-500.0,0.00022999,2]
[344637493,1733649083816,-500.0,0.00022999,2]
[344637494,1733649083826,-500.0,0.00022999,2]
[344637495,1733649083835,-616.44215041,0.00022999,2]
[344637496,1733649083845,-500.0,0.00022999,2]
[344637497,1733649083854,-625.47033238,0.00022999,2]
[344637498,1733649083863,-500.0,0.00022999,2]
[344637499,1733649083873,-500.0,0.00022999,2]
[344637500,1733649083882,-500.0,0.00022999,2]
[344637501,1733649083891,-500.0,0.00022999,2]
[344637502,1733649083901,-500.0,0.00022999,2]
[344637503,1733649083911,-500.0,0.00022999,2]
[344637504,1733649083920,-500.0,0.00022999,2]
[344637505,1733649083929,-500.0,0.00022999,2]
[344637506,1733649083938,-236.61,0.00022999,2]
[344637507,1733649083948,-500.0,0.00022999,2]
[344637508,1733649083957,-436.95,0.00022999,2]
[344637509,1733649083967,-500.0,0.00022999,2]
[344637510,1733649083977,-500.0,0.00022999,2]
[344637511,1733649083986,-576.1761092,0.00022999,2]
[344637512,1733649083996,-500.0,0.00022999,2]
[344637513,1733649084005,-500.0,0.00022999,2]
[344637514,1733649084016,-500.0,0.00022999,2]
[344637515,1733649084026,-500.0,0.00022999,2]
[344637516,1733649084133,-500.0,0.00022999,2]
[344637517,1733649084143,-460.89393391,0.00022999,2]
[344637518,1733649084155,-500.0,0.00022999,2]
[344637519,1733649084165,-500.0,0.00022999,2]
[344637520,1733649084175,-500.0,0.00022999,2]
[344637521,1733649084184,-500.0,0.00022999,2]
[344637522,1733649084194,-500.0,0.00022999,2]
[344637523,1733649084203,-500.0,0.00022999,2]
[344637524,1733649084213,-500.0,0.00022999,2]
[344637525,1733649084222,-500.0,0.00022999,2]
[344637526,1733649084231,-500.0,0.00022999,2]
[344637527,1733649084241,-246.22497029,0.00022999,2]
[344637528,1733649084250,-500.0,0.00022999,2]
[344637529,1733649084260,-500.0,0.00022999,2]
[344637530,1733649084269,-500.0,0.00022999,2]
[344637531,1733649084279,-500.0,0.00022999,2]
[344637532,1733649084288,-500.0,0.00022999,2]
[344637533,1733649084298,-500.0,0.00022999,2]
[344637534,1733649084307,-500.0,0.00022999,2]
[344637535,1733649084316,-500.0,0.00022999,2]
[344637536,1733649084325,-500.0,0.00022999,2]
[344637537,1733649084334,-500.0,0.00022999,2]
[344637538,1733649084344,-500.0,0.00022999,2]
[344637539,1733649084354,-500.0,0.00022999,2]
[344637540,1733649084364,-500.0,0.00022999,2]
[344637541,1733649084374,-500.0,0.00022999,2]
[344637542,1733649084384,-352.00091573,0.00022999,2]
[344637543,1733649084393,-500.0,0.00022999,2]
[344637544,1733649084404,-500.0,0.00022999,2]
[344637545,1733649084414,-500.0,0.00022999,2]
[344637546,1733649084424,-224.43,0.00022999,2]
[344637547,1733649084434,-500.0,0.00022999,2]
[344637548,1733649084443,-299.3,0.00022999,2]
[344637549,1733649084453,-500.0,0.00022999,2]
[344637550,1733649084463,-500.0,0.00022999,2]
[344637551,1733649084472,-500.0,0.00022999,2]
[344637552,1733649084482,-500.0,0.00022999,2]
[344637553,1733649084492,-500.0,0.00022999,2]
[344637554,1733649084502,-500.0,0.00022999,2]
[344637555,1733649084511,-500.0,0.00022999,2]
[344637556,1733649084520,-516.52861664,0.00022999,2]
[344637557,1733649084530,-500.0,0.00022999,2]
[344637558,1733649084540,-627.5,0.00022999,2]
[344637559,1733649084550,-500.0,0.00022999,2]
[344637560,1733649084559,-500.0,0.00022999,2]
[344637561,1733649084568,-500.0,0.00022999,2]
[344637562,1733649084581,-500.0,0.00022999,2]
[344637563,1733649084591,-500.0,0.00022999,2]
[344637564,1733649084600,-500.0,0.00022999,2]
[344637565,1733649084609,-500.0,0.00022999,2]
[344637566,1733649084620,-500.0,0.00022999,2]
[344637567,1733649084630,-500.0,0.00022999,2]
[344637568,1733649084639,-500.0,0.00022999,2]
[344637569,1733649084651,-213.02993157,0.00022999,2]
[344637570,1733649084661,-525.76007218,0.00022999,2]
[344637571,1733649084670,-155217.75638792,0.00023,3]
[344637572,1733649084679,-2716.17831548,0.00023,2]
[344637573,1733649084689,-6898.04862801,0.00023,3]
[344637574,1733649084699,-2054108.3003603,0.00023,3]
[344637575,1733649084708,-22560.0,0.00023,2]
[344637576,1733649084718,-5023.0,0.00023,2]
[344637577,1733649084727,-5000.0,0.00023,2]
[344637578,1733649084736,-5000.0,0.00023,2]
[344637579,1733649084745,-5000.0,0.00023,2]
[344637580,1733649084754,-100864.3988242,0.00023,2]
[344637581,1733649084763,-2000.0,0.00023,2]
[344637582,1733649084772,-1053.67,0.00023,3]
[344637583,1733649084782,-74117193.53810468,0.00023,3]
[344637584,1733649085144,-7679.71603,0.00023,3]
[344637585,1733649085157,-44682.32706483,0.00023,3]
[344637586,1733649085169,-3949.99999999,0.00023,3]
[344637587,1733649085247,-500.0,0.00022739,2]
[344637588,1733649085258,-500.0,0.00022739,2]
[344637589,1733649085268,-1007.471339,0.00022739,7]
[344637590,1733649085277,-500.0,0.00022897,2]
[344637591,1733649085286,-500.0,0.00022994,2]
[344637592,1733649085296,-500.0,0.00022995,2]
[344637593,1733649085306,-500.0,0.00022996,2]
[344637594,1733649085315,-6615.73985011,0.00023,3]
[344637595,1733649085330,-789.88,0.00022739,7]
[344637596,1733649085376,-217.591339,0.00022739,7]
[344637597,1733649085385,-1007.471339,0.00022739,7]
[344637598,1733649085396,-1007.471339,0.00022739,7]
[344637599,1733649085406,-1007.471339,0.00022739,7]
[344637600,1733649085415,-470.21944401,0.00022998,2]
[344637601,1733649085427,-29.78055599,0.00022998,2]
[344637602,1733649085436,-500.0,0.00022999,2]
[344637603,1733649085446,-244.91802841,0.00022999,2]
[344637604,1733649085457,-301.92197159,0.00022999,2]
[344637605,1733649085467,-512.27802841,0.00023,3]
[344637606,1733649085478,-1809.67186652,0.00023,3]
[344637607,1733649085633,-1007.471339,0.00022739,7]
[344637608,1733649085642,-500.0,0.00022739,2]
[344637609,1733649085655,-500.0,0.00022739,2]
[344637610,1733649085666,-1000.53822395,0.00022739,7]
[344637611,1733649085677,-6.93311505,0.00022739,7]
[344637612,1733649085687,-496.58688895,0.00022739,2]
[344637613,1733649085711,-3.41311105,0.00022739,2]
[344637614,1733649085720,-1007.471339,0.00022739,7]
[344637615,1733649085729,-93.73983232,0.00022739,2]
[344637616,1733649085741,-406.26016768,0.00022739,2]
[344637617,1733649085750,-500.0,0.00022739,2]
[344637618,1733649085759,-1007.471339,0.00022739,7]
[344637619,1733649085768,-500.0,0.00022739,2]
[344637620,1733649085777,-2958.79067323,0.00023,3]
[344637621,1733649085796,-271.88,0.00022739,2]
[344637622,1733649085805,-1007.471339,0.00022739,7]
[344637623,1733649085814,-2051.47077943,0.00023,3]
[344637624,1733649085825,-628.7249957,0.00023,3]
[344637625,1733649085847,-2478.100625,0.0002131,2]
[344637626,1733649086056,-1339.99658246,0.0002131,2]
[344637627,1733649086067,-626.69279254,0.0002131,2]
[344637628,1733649086077,-500.0,0.00022739,2]
[344637629,1733649086085,-1007.471339,0.00022739,7]
[344637630,1733649086095,-247.73587846,0.00022739,2]
[344637631,1733649086106,-252.26412154,0.00022739,2]
[344637632,1733649086114,-1007.471339,0.00022739,7]
[344637633,1733649086123,-500.0,0.00022739,2]
[344637634,1733649086132,-1007.471339,0.00022739,7]
[344637635,1733649086142,-1007.471339,0.00022739,7]
[344637636,1733649086153,-1007.471339,0.00022739,7]
[344637637,1733649086163,-1007.471339,0.00022739,7]
[344637638,1733649086172,-1007.471339,0.00022739,7]
[344637639,1733649086181,-1007.471339,0.00022739,7]
[344637640,1733649086191,-514.75965079,0.00022898,2]
[344637641,1733649086201,-3393.95174217,0.00023,3]
[344637642,1733649086212,-989.757365,0.00023,3]
[344637643,1733649086223,-353.9337774,0.00023,3]
[344637644,1733649086234,-1262.10000184,0.00023,3]
[344637645,1733649086251,-495.74875105,0.00023,3]
[344637646,1733649086267,-260.2866198,0.00022739,7]
[344637647,1733649086279,-747.1847192,0.00022739,7]
[344637648,1733649086289,-421997.31625448,0.00023,3]
[344637649,1733649086300,-4833.79971318,0.00023,3]
[344637650,1733649086312,-197454.0,0.00023,3]
[344637653,1733649169858,2500.0,0.00019,120]
[344637735,1733650231863,-905.59839347,0.00018862,2]
[344637742,1733650231923,-77.98160653,0.00018862,2]
[344637744,1733650231933,-300.0,0.00018999,2]
[344637746,1733650231943,-36865.0,0.00019,2]
[344637748,1733650231953,-150.0,0.00019178,2]
[344637750,1733650231963,-150.0,0.00019178,2]
[344637752,1733650231973,-186.51,0.00020477,2]
[344637754,1733650231982,-250.0,0.00020547,2]
[344637756,1733650231995,-15118.92,0.00020755,2]
[344637758,1733650232005,-150.0,0.00020781,2]
[344637760,1733650232014,-1500.0,0.00020782,2]
[344637762,1733650232023,-521.86,0.00020787,2]
[344637764,1733650232034,-193.28,0.00020787,2]
[344637766,1733650232044,-167.91,0.00020817,2]
[344637768,1733650232054,-250.0,0.00020829,2]
[344637769,1733650232063,-200.0,0.00020841,2]
[344637770,1733650232074,-150.0,0.00020944,2]
[344637771,1733650232084,-1000.0,0.00020965,2]
[344637772,1733650232094,-243.39,0.00020967,2]
[344637773,1733650232105,-16484.9924633,0.00021,2]
[344637774,1733650232126,-400.05597002,0.00021,2]
[344637775,1733650232138,-1035.787553,0.00021,2]
[344637909,1733650237739,-27938.98451793,0.00021,2]
[344637910,1733650237750,-6000.00000099,0.00021,2]
[344637911,1733650237759,-983.58,0.00021126,2]
[344637912,1733650237769,-407.75,0.00021378,30]
[344637913,1733650237778,-2110.0,0.000215,2]
[344637914,1733650237788,-250.0,0.00021509,2]
[344637915,1733650237797,-166.14,0.00021611,2]
[344637916,1733650237807,-165.89,0.00021649,2]
[344637917,1733650237817,-7500.0,0.000218,2]
[344637918,1733650237826,-176.37,0.0002185,2]
[344637919,1733650237836,-490.42,0.0002186,2]
[344637920,1733650237845,-382.54408276,0.00021873,2]
[344637921,1733650237857,-493.32,0.00021878,2]
[344637922,1733650237866,-500.07,0.00021878,2]
[344637923,1733650237876,-505.38,0.00021899,2]
[344637924,1733650237886,-3000.0,0.000219,2]
[344637925,1733650237895,-200.0,0.000219,2]
[344637926,1733650237905,-42676.65487803,0.000219,3]
[344637927,1733650237916,-447.33958555,0.000219,3]
[344637928,1733650237928,-8491.39892428,0.000219,3]
[344637929,1733650237939,-17348.05538194,0.000219,3]
[344637930,1733650237951,-123581.26892541,0.000219,3]
[344637931,1733650237961,-242.62178711,0.000219,2]
[344637932,1733650237970,-502.18,0.00021909,2]
[344637933,1733650237979,-1246.1,0.00021918,2]
[344637934,1733650237989,-1542.41830069,0.00022,5]
[344637935,1733650238001,-10690.22592297,0.00022,3]
[344637936,1733650238011,-2110.0,0.00022,2]
[344637937,1733650238021,-242.62178711,0.00022011,2]
[344637938,1733650238032,-242.62178711,0.00022122,2]
[344637939,1733650238042,-242.62178711,0.00022233,2]
[344637940,1733650238052,-1000.0,0.00022414,2]
[344637941,1733650238062,-503.49,0.00022458,2]
[344637942,1733650238071,-266858.0,0.000225,2]
[344637943,1733650238081,-2110.0,0.000225,2]
[344637944,1733650238092,-2333.77,0.00022518,2]
[344637945,1733650238103,-1040.07853178,0.0002254,2]
[344637946,1733650238117,-961.744,0.00022639,2]
[344637947,1733650238127,-2500.0,0.00022639,2]
[344637948,1733650238137,-32224.0,0.00022726,3]
[344637949,1733650238147,-502.2,0.00022739,2]
[344637950,1733650238156,-500.0,0.00022739,2]
[344637952,1733650238166,-500.0,0.00022739,2]
[344637954,1733650238175,-500.0,0.00022739,2]
[344637955,1733650238184,-500.0,0.00022739,2]
[344637956,1733650238193,-500.0,0.00022739,2]
[344637957,1733650238202,-500.0,0.00022739,2]
[344637958,1733650238213,-389.00379179,0.00022739,2]
[344637959,1733650238228,-1000.0,0.00022739,5]
[344637960,1733650238238,-840.49,0.00022739,5]
[344637961,1733650238247,-500.0,0.00022739,2]
[344637962,1733650238256,-500.0,0.00022739,2]
[344637963,1733650238265,-500.0,0.00022739,2]
[344637964,1733650238275,-500.0,0.00022739,2]
[344637965,1733650238284,-500.0,0.00022739,2]
[344637966,1733650238293,-500.0,0.00022739,2]
[344637967,1733650238302,-500.0,0.00022739,2]
[344637968,1733650238314,-500.0,0.00022739,2]
[344637969,1733650238323,-500.0,0.00022739,2]
[344637970,1733650238333,-500.0,0.00022739,2]
[344637971,1733650238342,-500.0,0.00022739,2]
[344637972,1733650238353,-500.0,0.00022739,2]
[344637973,1733650238366,-498.30307951,0.00022739,2]
[344637974,1733650238376,-500.0,0.00022739,2]
[344637975,1733650238386,-500.0,0.00022739,2]
[344637976,1733650238395,-500.0,0.00022739,2]
[344637977,1733650238405,-500.0,0.00022739,2]
[344637978,1733650238414,-500.0,0.00022739,2]
[344637979,1733650238424,-360.82,0.00022739,2]
[344637980,1733650238434,-500.0,0.00022739,2]
[344637981,1733650238443,-500.0,0.00022739,2]
[344637982,1733650238452,-500.0,0.00022739,2]
[344637983,1733650238462,-500.0,0.00022739,2]
[344637984,1733650238471,-500.0,0.00022739,2]
[344637985,1733650238481,-500.0,0.00022739,2]
[344637986,1733650238491,-500.0,0.00022739,2]
[344637987,1733650238500,-500.0,0.00022739,2]
[344637988,1733650238509,-500.0,0.00022739,2]
[344637989,1733650238519,-500.0,0.00022739,2]
[344637990,1733650238528,-500.0,0.00022739,2]
[344637991,1733650238537,-500.0,0.00022739,2]
[344637992,1733650238546,-500.0,0.00022739,2]
[344637993,1733650238555,-500.0,0.00022739,2]
[344637994,1733650238565,-500.0,0.00022739,2]
[344637995,1733650238574,-510.35499634,0.00022739,2]
[344637996,1733650238583,-500.0,0.00022739,2]
[344637997,1733650238592,-500.0,0.00022739,2]
[344637998,1733650238602,-500.0,0.00022739,2]
[344637999,1733650238612,-500.0,0.00022739,2]
[344638000,1733650238622,-500.0,0.00022739,2]
[344638001,1733650238631,-500.0,0.00022739,2]
[344638002,1733650238641,-500.0,0.00022739,2]
[344638003,1733650238650,-500.0,0.00022739,2]
[344638004,1733650238660,-512.71,0.00022739,2]
[344638005,1733650238669,-500.0,0.00022739,2]
[344638006,1733650238678,-500.0,0.00022739,2]
[344638007,1733650238687,-507.6998766,0.00022739,2]
[344638008,1733650238696,-500.0,0.00022739,2]
[344638009,1733650238706,-500.0,0.00022739,2]
[344638010,1733650238715,-500.0,0.00022739,2]
[344638011,1733650238724,-564.34,0.00022739,2]
[344638012,1733650238733,-500.0,0.00022739,2]
[344638013,1733650238743,-500.0,0.00022739,2]
[344638014,1733650238752,-500.0,0.00022739,2]
[344638015,1733650238761,-500.0,0.00022739,2]
[344638016,1733650238770,-647.38288363,0.00022739,2]
[344638017,1733650238780,-561.06649732,0.00022739,2]
[344638018,1733650238789,-500.0,0.00022739,2]
[344638019,1733650238798,-500.0,0.00022739,2]
[344638020,1733650238807,-500.0,0.00022739,2]
[344638021,1733650238816,-435.30691303,0.00022739,2]
[344638022,1733650238825,-500.0,0.00022739,2]
[344638023,1733650238834,-500.0,0.00022739,2]
[344638024,1733650238843,-500.0,0.00022739,2]
[344638025,1733650238856,-500.0,0.00022739,2]
[344638026,1733650239029,-500.0,0.00022739,2]
[344638027,1733650239040,-500.0,0.00022739,2]
[344638028,1733650239049,-500.0,0.00022739,2]
[344638029,1733650239059,-500.0,0.00022739,2]
[344638030,1733650239068,-500.0,0.00022739,2]
[344638031,1733650239079,-500.0,0.00022739,2]
[344638032,1733650239088,-500.0,0.00022739,2]
[344638033,1733650239097,-500.0,0.00022739,2]
[344638034,1733650239116,-500.0,0.00022739,2]
[344638035,1733650239125,-500.0,0.00022739,2]
[344638036,1733650239134,-500.0,0.00022739,2]
[344638037,1733650239143,-500.0,0.00022739,2]
[344638038,1733650239153,-500.0,0.00022739,2]
[344638039,1733650239161,-500.0,0.00022739,2]
[344638040,1733650239171,-500.0,0.00022739,2]
[344638041,1733650239180,-500.0,0.00022739,2]
[344638042,1733650239189,-500.0,0.00022739,2]
[344638043,1733650239198,-500.0,0.00022739,2]
[344638044,1733650239208,-500.0,0.00022739,2]
[344638045,1733650239217,-500.0,0.00022739,2]
[344638046,1733650239229,-500.0,0.00022739,2]
[344638047,1733650239238,-500.0,0.00022739,2]
[344638048,1733650239247,-500.0,0.00022739,2]
[344638049,1733650239256,-323.96515097,0.00022739,2]
[344638050,1733650239265,-500.0,0.00022739,2]
[344638051,1733650239275,-500.0,0.00022739,2]
[344638052,1733650239284,-500.0,0.00022739,2]
[344638053,1733650239293,-500.0,0.00022739,2]
[344638054,1733650239302,-500.0,0.00022739,2]
[344638055,1733650239312,-500.0,0.00022739,2]
[344638056,1733650239321,-500.0,0.00022739,2]
[344638057,1733650239331,-500.0,0.00022739,2]
[344638058,1733650239340,-500.0,0.00022739,2]
[344638059,1733650239349,-500.0,0.00022739,2]
[344638060,1733650239361,-221.88,0.00022739,2]
[344638061,1733650239370,-500.0,0.00022739,2]
[344638062,1733650239379,-500.0,0.00022739,2]
[344638063,1733650239389,-500.0,0.00022739,2]
[344638064,1733650239399,-536.5,0.00022739,2]
[344638065,1733650239408,-500.0,0.00022739,2]
[344638066,1733650239417,-500.0,0.00022739,2]
[344638067,1733650239427,-500.0,0.00022739,2]
[344638068,1733650239437,-500.0,0.00022739,2]
[344638069,1733650239447,-500.0,0.00022739,2]
[344638070,1733650239456,-500.0,0.00022739,2]
[344638071,1733650239466,-500.0,0.00022739,2]